[Event "Titled Tuesday Blitz February 14 Early 2023"]
[White "Samunenkov, Ihor"]
[Black "Parpiev, Isaak"]
[WhiteFideId "14187086"]
[BlackFideId "34281576"]
[WhiteElo "2501"]
[BlackElo "2167"]
[Result "1-0"]
[Round "02"]
[TimeControl "180+2"]
[Date "2023.02.15"]
[WhiteClock "0:00:06"]
[BlackClock "0:00:05"]

1. d4 {[%clk 0:03:00]}  Nf6 {[%clk 0:02:59]} 2. c4 {[%clk 0:03:00]}  c5 {[%clk 0:02:55]} 3. d5 {[%clk 0:02:59]}  b5 {[%clk 0:02:55]} 4. cxb5 {[%clk 0:02:59]}  a6 {[%clk 0:02:56]} 5. bxa6 {[%clk 0:03:00]}  g6 {[%clk 0:02:56]} 6. Nc3 {[%clk 0:02:58]}  Bg7 {[%clk 0:02:55]} 7. e4 {[%clk 0:02:52]}  d6 {[%clk 0:02:54]} 8. Bb5+ {[%clk 0:02:26]}  Nfd7 {[%clk 0:02:47]} 9. Nge2 {[%clk 0:02:19]}  O-O {[%clk 0:02:45]} 10. O-O {[%clk 0:02:19]}  Bxa6 {[%clk 0:02:44]} 11. a4 {[%clk 0:02:16]}  Bxb5 {[%clk 0:02:35]} 12. Nxb5 {[%clk 0:02:16]}  Na6 {[%clk 0:02:36]} 13. Nec3 {[%clk 0:01:49]}  Nb4 {[%clk 0:02:25]} 14. Qe2 {[%clk 0:01:42]}  Ne5 {[%clk 0:02:21]} 15. Be3 {[%clk 0:01:32]}  Ned3 {[%clk 0:02:10]} 16. Rfd1 {[%clk 0:01:11]}  c4 {[%clk 0:01:57]} 17. b3 {[%clk 0:01:10]}  Qc8 {[%clk 0:01:24]} 18. Rab1 {[%clk 0:01:08]}  cxb3 {[%clk 0:00:45]} 19. Rxd3 {[%clk 0:01:01]}  Nxd3 {[%clk 0:00:46]} 20. Qxd3 {[%clk 0:01:01]}  Qa6 {[%clk 0:00:46]} 21. Bd4 {[%clk 0:00:49]}  Bxd4 {[%clk 0:00:44]} 22. Qxd4 {[%clk 0:00:49]}  Rfc8 {[%clk 0:00:38]} 23. h4 {[%clk 0:00:39]}  h5 {[%clk 0:00:34]} 24. Rxb3 {[%clk 0:00:39]}  Rc5 {[%clk 0:00:34]} 25. e5 {[%clk 0:00:36]}  Rac8 {[%clk 0:00:28]} 26. exd6 {[%clk 0:00:24]}  exd6 {[%clk 0:00:29]} 27. Qf6 {[%clk 0:00:21]}  Qb6 {[%clk 0:00:18]} 28. g3 {[%clk 0:00:12]}  Rc4 {[%clk 0:00:15]} 29. Kg2 {[%clk 0:00:08]}  Rg4 {[%clk 0:00:09]} 30. Rb1 {[%clk 0:00:05]}  Rd8 {[%clk 0:00:06]} 31. Re1 {[%clk 0:00:05]}  Rf8 {[%clk 0:00:01]} 32. Qxd6 {[%clk 0:00:03]}  Qb7 {[%clk 0:00:01]} 33. Ne4 {[%clk 0:00:03]}  Qc8 {[%clk 0:00:01]} 34. Nf6+ {[%clk 0:00:03]}  Kh8 {[%clk 0:00:02]} 35. Nxg4 {[%clk 0:00:03]}  Qxg4 {[%clk 0:00:03]} 36. Qxf8+ {[%clk 0:00:04]}  Kh7 {[%clk 0:00:03]} 37. Qxf7+ {[%clk 0:00:04]}  Kh6 {[%clk 0:00:04]} 38. Qf8+ {[%clk 0:00:05]}  Kh7 {[%clk 0:00:05]} 39. Re7# {[%clk 0:00:06]} 1-0


[Site "https://www.chess.com"]

[Event "Titled Tuesday Blitz February 14 Early 2023"]
[White "Biastoch, Bennet"]
[Black "Kilic, Eray"]
[WhiteFideId "12939889"]
[BlackFideId "44517173"]
[WhiteElo "2257"]
[BlackElo "2414"]
[Result "0-1"]
[Round "02"]
[TimeControl "180+2"]
[Date "2023.02.15"]
[WhiteClock "0:01:42"]
[BlackClock "0:01:27"]

1. Nf3 {[%clk 0:03:00]}  Nf6 {[%clk 0:03:00]} 2. g3 {[%clk 0:02:58]}  g6 {[%clk 0:03:00]} 3. Bg2 {[%clk 0:02:58]}  Bg7 {[%clk 0:03:01]} 4. O-O {[%clk 0:02:59]}  O-O {[%clk 0:03:02]} 5. d3 {[%clk 0:02:59]}  d5 {[%clk 0:03:01]} 6. c4 {[%clk 0:02:57]}  Nc6 {[%clk 0:02:58]} 7. cxd5 {[%clk 0:02:54]}  Nxd5 {[%clk 0:02:59]} 8. e4 {[%clk 0:02:54]}  Nb6 {[%clk 0:02:58]} 9. Nc3 {[%clk 0:02:52]}  Nd4 {[%clk 0:02:40]} 10. Be3 {[%clk 0:02:50]}  Bg4 {[%clk 0:02:36]} 11. Bxd4 {[%clk 0:02:30]}  Bxd4 {[%clk 0:02:33]} 12. h3 {[%clk 0:02:30]}  Bxf3 {[%clk 0:02:33]} 13. Qxf3 {[%clk 0:02:30]}  c6 {[%clk 0:02:33]} 14. Rac1 {[%clk 0:02:30]}  Qd6 {[%clk 0:02:30]} 15. Rfd1 {[%clk 0:02:30]}  Rad8 {[%clk 0:02:30]} 16. Bf1 {[%clk 0:02:30]}  Qb4 {[%clk 0:02:27]} 17. Qe2 {[%clk 0:02:29]}  f5 {[%clk 0:02:19]} 18. e5 {[%clk 0:02:24]}  f4 {[%clk 0:02:18]} 19. a3 {[%clk 0:02:17]}  Qb3 {[%clk 0:02:16]} 20. Bg2 {[%clk 0:01:58]}  fxg3 {[%clk 0:02:13]} 21. Kh1 {[%clk 0:01:58]}  Rxf2 {[%clk 0:02:12]} 22. Qg4 {[%clk 0:01:58]}  Rxg2 {[%clk 0:01:27]} 23. Kxg2 {[%clk 0:01:58]}  Nd5 {[%clk 0:01:27]} 24. Nxd5 {[%clk 0:01:56]}  Qxb2+ {[%clk 0:01:27]} 25. Kxg3 {[%clk 0:01:42]}  Qf2# {[%clk 0:01:27]} 0-1


[Site "https://www.chess.com"]

[Event "Titled Tuesday Blitz February 14 Early 2023"]
[White "Zubarev, Alexander"]
[Black "Galchenko, Matvey"]
[WhiteFideId "14104385"]
[BlackFideId "24175480"]
[WhiteElo "2372"]
[BlackElo "2438"]
[Result "0-1"]
[Round "02"]
[TimeControl "180+2"]
[Date "2023.02.15"]
[WhiteClock "0:00:03"]
[BlackClock "0:00:09"]

1. Nf3 {[%clk 0:03:00]}  c5 {[%clk 0:02:57]} 2. e4 {[%clk 0:02:58]}  g6 {[%clk 0:02:57]} 3. c4 {[%clk 0:02:55]}  Bg7 {[%clk 0:02:57]} 4. d4 {[%clk 0:02:55]}  cxd4 {[%clk 0:02:58]} 5. Nxd4 {[%clk 0:02:55]}  Nc6 {[%clk 0:02:59]} 6. Be3 {[%clk 0:02:54]}  Nf6 {[%clk 0:02:58]} 7. Nc3 {[%clk 0:02:53]}  O-O {[%clk 0:02:58]} 8. Be2 {[%clk 0:02:52]}  d6 {[%clk 0:02:58]} 9. f3 {[%clk 0:02:46]}  Bd7 {[%clk 0:02:54]} 10. O-O {[%clk 0:02:46]}  Nxd4 {[%clk 0:02:52]} 11. Bxd4 {[%clk 0:02:46]}  a5 {[%clk 0:02:53]} 12. Qd2 {[%clk 0:02:39]}  Bc6 {[%clk 0:02:52]} 13. b3 {[%clk 0:02:36]}  Nd7 {[%clk 0:02:51]} 14. Be3 {[%clk 0:02:35]}  Nc5 {[%clk 0:02:48]} 15. Rfc1 {[%clk 0:02:30]}  e6 {[%clk 0:02:43]} 16. Rd1 {[%clk 0:02:22]}  Be5 {[%clk 0:02:40]} 17. Bd4 {[%clk 0:02:03]}  Qe7 {[%clk 0:02:37]} 18. Rac1 {[%clk 0:01:52]}  Rfd8 {[%clk 0:02:30]} 19. Bf1 {[%clk 0:01:51]}  Bxd4+ {[%clk 0:02:09]} 20. Qxd4 {[%clk 0:01:52]}  e5 {[%clk 0:02:10]} 21. Qe3 {[%clk 0:01:44]}  Ne6 {[%clk 0:02:11]} 22. Rd2 {[%clk 0:01:44]}  Nd4 {[%clk 0:02:05]} 23. Ne2 {[%clk 0:01:43]}  Ne6 {[%clk 0:02:05]} 24. Rcd1 {[%clk 0:01:41]}  h5 {[%clk 0:02:00]} 25. g3 {[%clk 0:01:19]}  Kg7 {[%clk 0:01:44]} 26. h4 {[%clk 0:01:16]}  Qc7 {[%clk 0:01:17]} 27. Nc3 {[%clk 0:01:04]}  Qe7 {[%clk 0:00:56]} 28. Bh3 {[%clk 0:00:58]}  Nc5 {[%clk 0:00:52]} 29. Kf2 {[%clk 0:00:43]}  Qf6 {[%clk 0:00:40]} 30. Qg5 {[%clk 0:00:40]}  Qxg5 {[%clk 0:00:10]} 31. hxg5 {[%clk 0:00:41]}  Kf8 {[%clk 0:00:09]} 32. Rxd6 {[%clk 0:00:40]}  Rxd6 {[%clk 0:00:10]} 33. Rxd6 {[%clk 0:00:40]}  Ke7 {[%clk 0:00:10]} 34. Rd2 {[%clk 0:00:39]}  Ne6 {[%clk 0:00:10]} 35. Bxe6 {[%clk 0:00:37]}  fxe6 {[%clk 0:00:11]} 36. Ke3 {[%clk 0:00:36]}  Rf8 {[%clk 0:00:11]} 37. a3 {[%clk 0:00:32]}  Ra8 {[%clk 0:00:10]} 38. c5 {[%clk 0:00:20]}  Bd7 {[%clk 0:00:10]} 39. Rd6 {[%clk 0:00:18]}  Bc6 {[%clk 0:00:09]} 40. Kd3 {[%clk 0:00:17]}  Rf8 {[%clk 0:00:08]} 41. Ke3 {[%clk 0:00:18]}  Ra8 {[%clk 0:00:08]} 42. Rd2 {[%clk 0:00:17]}  Bd7 {[%clk 0:00:08]} 43. Rd3 {[%clk 0:00:17]}  Bc6 {[%clk 0:00:09]} 44. b4 {[%clk 0:00:17]}  axb4 {[%clk 0:00:08]} 45. axb4 {[%clk 0:00:18]}  Ra1 {[%clk 0:00:09]} 46. b5 {[%clk 0:00:18]}  Bd7 {[%clk 0:00:09]} 47. Rd6 {[%clk 0:00:12]}  Rc1 {[%clk 0:00:07]} 48. Kd2 {[%clk 0:00:11]}  Rf1 {[%clk 0:00:08]} 49. Rd3 {[%clk 0:00:11]}  Rg1 {[%clk 0:00:07]} 50. f4 {[%clk 0:00:09]}  h4 {[%clk 0:00:06]} 51. gxh4 {[%clk 0:00:09]}  exf4 {[%clk 0:00:07]} 52. e5 {[%clk 0:00:06]}  Rg2+ {[%clk 0:00:07]} 53. Ke1 {[%clk 0:00:05]}  Rh2 {[%clk 0:00:08]} 54. c6 {[%clk 0:00:05]}  bxc6 {[%clk 0:00:09]} 55. b6 {[%clk 0:00:05]}  Bc8 {[%clk 0:00:10]} 56. Ne4 {[%clk 0:00:06]}  Ba6 {[%clk 0:00:07]} 57. Rd6 {[%clk 0:00:04]}  Re2+ {[%clk 0:00:05]} 58. Kd1 {[%clk 0:00:04]}  Rxe4 {[%clk 0:00:06]} 59. Rxc6 {[%clk 0:00:05]}  Rb4 {[%clk 0:00:04]} 60. Rc7+ {[%clk 0:00:04]}  Kd8 {[%clk 0:00:05]} 61. Rf7 {[%clk 0:00:04]}  Rxb6 {[%clk 0:00:02]} 62. h5 {[%clk 0:00:04]}  gxh5 {[%clk 0:00:02]} 63. g6 {[%clk 0:00:05]}  Bd3 {[%clk 0:00:02]} 64. g7 {[%clk 0:00:04]}  Bh7 {[%clk 0:00:03]} 65. Rxf4 {[%clk 0:00:03]}  Ke7 {[%clk 0:00:04]} 66. Rf8 {[%clk 0:00:03]}  Rb1+ {[%clk 0:00:05]} 67. Ke2 {[%clk 0:00:03]}  Rg1 {[%clk 0:00:05]} 68. Rf6 {[%clk 0:00:02]}  Rxg7 {[%clk 0:00:06]} 69. Rh6 {[%clk 0:00:02]}  Bg6 {[%clk 0:00:06]} 70. Ke3 {[%clk 0:00:02]}  Bf7 {[%clk 0:00:06]} 71. Kf4 {[%clk 0:00:03]}  Rg4+ {[%clk 0:00:07]} 72. Kf3 {[%clk 0:00:03]}  Rg5 {[%clk 0:00:07]} 73. Kf4 {[%clk 0:00:03]}  Rf5+ {[%clk 0:00:07]} 74. Ke4 {[%clk 0:00:03]}  Kf8 {[%clk 0:00:08]} 75. Rh7 {[%clk 0:00:03]}  Kg8 {[%clk 0:00:09]} 76. Rh6 {[%clk 0:00:03]}  Kg7 {[%clk 0:00:09]} 0-1


[Site "https://www.chess.com"]

[Event "Titled Tuesday Blitz February 14 Early 2023"]
[White "Lucassen, Mickey"]
[Black "Kukhmazov, Arsen"]
[WhiteFideId "12919110"]
[BlackFideId "24108260"]
[WhiteElo "2023"]
[BlackElo "2512"]
[Result "1-0"]
[Round "02"]
[TimeControl "180+2"]
[Date "2023.02.15"]
[WhiteClock "0:00:17"]
[BlackClock "0:00:02"]

1. d4 {[%clk 0:03:00]}  d5 {[%clk 0:02:58]} 2. Nc3 {[%clk 0:02:59]}  c6 {[%clk 0:02:56]} 3. e4 {[%clk 0:02:57]}  dxe4 {[%clk 0:02:57]} 4. Nxe4 {[%clk 0:02:57]}  Bf5 {[%clk 0:02:57]} 5. Ng3 {[%clk 0:02:56]}  Bg6 {[%clk 0:02:57]} 6. Nf3 {[%clk 0:02:56]}  e6 {[%clk 0:02:57]} 7. h4 {[%clk 0:02:56]}  h6 {[%clk 0:02:57]} 8. h5 {[%clk 0:02:56]}  Bh7 {[%clk 0:02:57]} 9. Bd3 {[%clk 0:02:55]}  Bxd3 {[%clk 0:02:57]} 10. Qxd3 {[%clk 0:02:56]}  Nf6 {[%clk 0:02:58]} 11. Bd2 {[%clk 0:02:54]}  c5 {[%clk 0:02:59]} 12. O-O-O {[%clk 0:02:51]}  Nc6 {[%clk 0:02:59]} 13. Bc3 {[%clk 0:02:37]}  Qd5 {[%clk 0:02:59]} 14. dxc5 {[%clk 0:02:28]}  Qxd3 {[%clk 0:02:59]} 15. Rxd3 {[%clk 0:02:27]}  Bxc5 {[%clk 0:03:00]} 16. Nd4 {[%clk 0:02:22]}  O-O-O {[%clk 0:02:06]} 17. Nxc6 {[%clk 0:02:17]}  bxc6 {[%clk 0:01:57]} 18. Rf3 {[%clk 0:01:51]}  Be7 {[%clk 0:01:57]} 19. Rd1 {[%clk 0:01:46]}  Rxd1+ {[%clk 0:01:56]} 20. Kxd1 {[%clk 0:01:47]}  Rd8+ {[%clk 0:01:56]} 21. Ke2 {[%clk 0:01:47]}  Rd5 {[%clk 0:01:57]} 22. Rd3 {[%clk 0:01:41]}  Nxh5 {[%clk 0:01:49]} 23. Nxh5 {[%clk 0:01:37]}  Rxh5 {[%clk 0:01:50]} 24. Bxg7 {[%clk 0:01:36]}  Rh2 {[%clk 0:01:41]} 25. Rh3 {[%clk 0:01:27]}  Rxg2 {[%clk 0:01:41]} 26. Bxh6 {[%clk 0:01:28]}  Rg1 {[%clk 0:01:25]} 27. Be3 {[%clk 0:01:12]}  Rb1 {[%clk 0:01:25]} 28. Bd4 {[%clk 0:01:08]}  c5 {[%clk 0:01:26]} 29. Bc3 {[%clk 0:01:08]}  Rc1 {[%clk 0:01:02]} 30. Kd2 {[%clk 0:01:05]}  Bg5+ {[%clk 0:01:02]} 31. Kd3 {[%clk 0:01:03]}  Rd1+ {[%clk 0:00:46]} 32. Ke2 {[%clk 0:01:02]}  Rd5 {[%clk 0:00:46]} 33. Rh7 {[%clk 0:00:57]}  Rf5 {[%clk 0:00:45]} 34. Rh8+ {[%clk 0:00:45]}  Kb7 {[%clk 0:00:45]} 35. Rh7 {[%clk 0:00:42]}  Kc6 {[%clk 0:00:45]} 36. Rh8 {[%clk 0:00:40]}  a6 {[%clk 0:00:40]} 37. Rc8+ {[%clk 0:00:39]}  Kb7 {[%clk 0:00:41]} 38. Rf8 {[%clk 0:00:36]}  Bh4 {[%clk 0:00:40]} 39. f3 {[%clk 0:00:35]}  Be7 {[%clk 0:00:40]} 40. Rg8 {[%clk 0:00:33]}  Bd6 {[%clk 0:00:40]} 41. Rg7 {[%clk 0:00:32]}  Kc6 {[%clk 0:00:40]} 42. Rg4 {[%clk 0:00:29]}  Bc7 {[%clk 0:00:38]} 43. Re4 {[%clk 0:00:29]}  Rh5 {[%clk 0:00:33]} 44. Ra4 {[%clk 0:00:29]}  Rh2+ {[%clk 0:00:29]} 45. Kd3 {[%clk 0:00:29]}  Kb5 {[%clk 0:00:29]} 46. Rg4 {[%clk 0:00:30]}  f5 {[%clk 0:00:24]} 47. Rg6 {[%clk 0:00:27]}  c4+ {[%clk 0:00:25]} 48. Kd4 {[%clk 0:00:22]}  Re2 {[%clk 0:00:23]} 49. a4+ {[%clk 0:00:20]}  Kxa4 {[%clk 0:00:06]} 50. Kxc4 {[%clk 0:00:20]}  Re3 {[%clk 0:00:07]} 51. Bb4 {[%clk 0:00:17]}  Bd6 {[%clk 0:00:02]} 52. b3+ {[%clk 0:00:17]} 1-0


[Site "https://www.chess.com"]

[Event "Titled Tuesday Blitz February 14 Early 2023"]
[White "Jaskolka, Tomasz"]
[Black "Murzin, Volodar"]
[WhiteFideId "1170791"]
[BlackFideId "44155573"]
[WhiteElo "2238"]
[BlackElo "2604"]
[Result "0-1"]
[Round "02"]
[TimeControl "180+2"]
[Date "2023.02.15"]
[WhiteClock "0:01:34"]
[BlackClock "0:00:56"]

1. d4 {[%clk 0:02:57]}  Nf6 {[%clk 0:02:59]} 2. Nf3 {[%clk 0:02:57]}  g6 {[%clk 0:02:59]} 3. g3 {[%clk 0:02:57]}  Bg7 {[%clk 0:02:59]} 4. Bg2 {[%clk 0:02:58]}  O-O {[%clk 0:03:00]} 5. O-O {[%clk 0:02:59]}  d6 {[%clk 0:03:01]} 6. c4 {[%clk 0:02:59]}  Nbd7 {[%clk 0:03:02]} 7. Nc3 {[%clk 0:02:56]}  e5 {[%clk 0:03:02]} 8. e4 {[%clk 0:02:56]}  a6 {[%clk 0:03:03]} 9. b3 {[%clk 0:02:41]}  b5 {[%clk 0:02:59]} 10. Qe2 {[%clk 0:02:34]}  b4 {[%clk 0:02:52]} 11. Nd5 {[%clk 0:02:34]}  exd4 {[%clk 0:02:43]} 12. Bb2 {[%clk 0:02:32]}  c5 {[%clk 0:02:39]} 13. Qd3 {[%clk 0:02:22]}  Nxd5 {[%clk 0:02:35]} 14. cxd5 {[%clk 0:02:19]}  a5 {[%clk 0:02:35]} 15. Nd2 {[%clk 0:02:19]}  Ba6 {[%clk 0:02:29]} 16. Nc4 {[%clk 0:02:19]}  Ne5 {[%clk 0:02:24]} 17. Qc2 {[%clk 0:02:14]}  Nxc4 {[%clk 0:01:41]} 18. bxc4 {[%clk 0:02:13]}  d3 {[%clk 0:01:41]} 19. Qd2 {[%clk 0:02:08]}  Bxc4 {[%clk 0:01:33]} 20. f4 {[%clk 0:02:08]}  Bxb2 {[%clk 0:01:21]} 21. Qxb2 {[%clk 0:02:08]}  Ba6 {[%clk 0:01:22]} 22. e5 {[%clk 0:02:02]}  c4 {[%clk 0:01:20]} 23. Qd4 {[%clk 0:02:01]}  Rb8 {[%clk 0:01:20]} 24. Qe4 {[%clk 0:02:00]}  d2 {[%clk 0:01:17]} 25. f5 {[%clk 0:01:59]}  dxe5 {[%clk 0:01:00]} 26. f6 {[%clk 0:01:37]}  c3 {[%clk 0:00:59]} 27. Qh4 {[%clk 0:01:35]}  Bxf1 {[%clk 0:00:56]} 28. Rxf1 {[%clk 0:01:34]}  Rb6 {[%clk 0:00:56]} 29. Qh6 {[%clk 0:01:34]}  Rxf6 {[%clk 0:00:56]} 0-1


[Site "https://www.chess.com"]

[Event "Titled Tuesday Blitz February 14 Early 2023"]
[White "Harsh Suresh"]
[Black "Avalos Parra, Joao"]
[WhiteFideId "45018464"]
[BlackFideId "3402541"]
[WhiteElo "2298"]
[BlackElo "2185"]
[Result "1-0"]
[Round "02"]
[TimeControl "180+2"]
[Date "2023.02.15"]
[WhiteClock "0:00:41"]
[BlackClock "0:02:12"]

1. e4 {[%clk 0:03:00]}  e5 {[%clk 0:02:59]} 2. Nf3 {[%clk 0:03:00]}  Nc6 {[%clk 0:03:00]} 3. Bc4 {[%clk 0:03:00]}  Bc5 {[%clk 0:02:59]} 4. O-O {[%clk 0:03:00]}  Nf6 {[%clk 0:03:00]} 5. d3 {[%clk 0:03:00]}  O-O {[%clk 0:02:58]} 6. c3 {[%clk 0:02:59]}  d6 {[%clk 0:02:58]} 7. h3 {[%clk 0:02:59]}  a5 {[%clk 0:02:58]} 8. a4 {[%clk 0:02:57]}  Ba7 {[%clk 0:02:58]} 9. Bg5 {[%clk 0:02:56]}  Be6 {[%clk 0:02:51]} 10. Nbd2 {[%clk 0:02:56]}  Qe7 {[%clk 0:02:38]} 11. Qb3 {[%clk 0:02:49]}  Rab8 {[%clk 0:02:31]} 12. Rae1 {[%clk 0:02:39]}  Bxc4 {[%clk 0:02:29]} 13. Nxc4 {[%clk 0:02:35]}  Qe6 {[%clk 0:02:27]} 14. Bxf6 {[%clk 0:02:29]}  Qxf6 {[%clk 0:02:28]} 15. Ne3 {[%clk 0:02:29]}  Ne7 {[%clk 0:02:26]} 16. d4 {[%clk 0:02:18]}  c6 {[%clk 0:02:20]} 17. dxe5 {[%clk 0:02:14]}  dxe5 {[%clk 0:02:20]} 18. Ng4 {[%clk 0:02:14]}  Qf4 {[%clk 0:02:15]} 19. Ngxe5 {[%clk 0:01:54]}  Ng6 {[%clk 0:02:15]} 20. Nxg6 {[%clk 0:00:45]}  hxg6 {[%clk 0:02:16]} 21. Qc2 {[%clk 0:00:42]}  Rbd8 {[%clk 0:02:13]} 22. Rd1 {[%clk 0:00:40]}  Rfe8 {[%clk 0:02:11]} 23. Rxd8 {[%clk 0:00:40]}  Rxd8 {[%clk 0:02:12]} 24. Rd1 {[%clk 0:00:40]}  Rxd1+ {[%clk 0:02:11]} 25. Qxd1 {[%clk 0:00:41]}  Qf5 {[%clk 0:02:12]} 26. exf5 {[%clk 0:00:41]} 1-0


[Site "https://www.chess.com"]

[Event "Titled Tuesday Blitz February 14 Early 2023"]
[White "Ljukin, Sergei"]
[Black "Lortkipanidze, Nodar"]
[WhiteFideId "14102200"]
[BlackFideId "13604058"]
[WhiteElo "2362"]
[BlackElo "2406"]
[Result "1-0"]
[Round "02"]
[TimeControl "180+2"]
[Date "2023.02.15"]
[WhiteClock "0:00:04"]
[BlackClock "0:01:04"]

1. e4 {[%clk 0:02:52]}  c5 {[%clk 0:02:59]} 2. Nf3 {[%clk 0:02:51]}  d6 {[%clk 0:03:00]} 3. d4 {[%clk 0:02:51]}  cxd4 {[%clk 0:03:01]} 4. Nxd4 {[%clk 0:02:52]}  Nf6 {[%clk 0:03:01]} 5. Nc3 {[%clk 0:02:52]}  g6 {[%clk 0:03:02]} 6. Be3 {[%clk 0:02:52]}  Bg7 {[%clk 0:03:03]} 7. f3 {[%clk 0:02:53]}  O-O {[%clk 0:03:03]} 8. Qd2 {[%clk 0:02:53]}  Nc6 {[%clk 0:03:03]} 9. O-O-O {[%clk 0:02:54]}  d5 {[%clk 0:03:04]} 10. Kb1 {[%clk 0:02:55]}  e5 {[%clk 0:03:03]} 11. Nxc6 {[%clk 0:02:54]}  bxc6 {[%clk 0:03:04]} 12. exd5 {[%clk 0:02:54]}  Nxd5 {[%clk 0:03:05]} 13. Nxd5 {[%clk 0:02:54]}  cxd5 {[%clk 0:03:05]} 14. Qxd5 {[%clk 0:02:55]}  Qc7 {[%clk 0:02:58]} 15. Qxa8 {[%clk 0:02:54]}  Bf5 {[%clk 0:02:58]} 16. Qxf8+ {[%clk 0:02:49]}  Bxf8 {[%clk 0:02:54]} 17. Bd3 {[%clk 0:02:48]}  Be6 {[%clk 0:02:55]} 18. Be4 {[%clk 0:02:47]}  Qa5 {[%clk 0:02:52]} 19. b3 {[%clk 0:02:27]}  h5 {[%clk 0:02:52]} 20. Bd2 {[%clk 0:02:19]}  Qc5 {[%clk 0:02:51]} 21. Bc1 {[%clk 0:02:17]}  h4 {[%clk 0:02:46]} 22. Bb2 {[%clk 0:02:12]}  a5 {[%clk 0:02:44]} 23. a4 {[%clk 0:02:00]}  Bg7 {[%clk 0:02:33]} 24. Rd2 {[%clk 0:01:55]}  h3 {[%clk 0:02:18]} 25. gxh3 {[%clk 0:01:50]}  f5 {[%clk 0:02:15]} 26. Ba8 {[%clk 0:01:48]}  Kh7 {[%clk 0:02:01]} 27. Rhd1 {[%clk 0:01:44]}  f4 {[%clk 0:01:56]} 28. Be4 {[%clk 0:01:35]}  Bxh3 {[%clk 0:01:55]} 29. Rd7 {[%clk 0:01:28]}  Bxd7 {[%clk 0:01:54]} 30. Rxd7 {[%clk 0:01:27]}  Kh6 {[%clk 0:01:51]} 31. h4 {[%clk 0:01:18]}  Bf6 {[%clk 0:01:46]} 32. Rd5 {[%clk 0:01:14]}  Qg1+ {[%clk 0:01:45]} 33. Ka2 {[%clk 0:01:14]}  Bxh4 {[%clk 0:01:42]} 34. Rd6 {[%clk 0:01:05]}  Kh5 {[%clk 0:01:35]} 35. Bxe5 {[%clk 0:00:54]}  Qc5 {[%clk 0:01:32]} 36. Rd5 {[%clk 0:00:46]}  Qc8 {[%clk 0:01:32]} 37. Bxf4+ {[%clk 0:00:40]}  g5 {[%clk 0:01:33]} 38. Be3 {[%clk 0:00:21]}  Kh6 {[%clk 0:01:31]} 39. Rxa5 {[%clk 0:00:20]}  Kg7 {[%clk 0:01:28]} 40. Bxg5 {[%clk 0:00:18]}  Bf2 {[%clk 0:01:28]} 41. Rd5 {[%clk 0:00:13]}  Qc3 {[%clk 0:01:21]} 42. Bc1 {[%clk 0:00:10]}  Kf7 {[%clk 0:01:20]} 43. Bb2 {[%clk 0:00:10]}  Qc7 {[%clk 0:01:19]} 44. Bd3 {[%clk 0:00:09]}  Bh4 {[%clk 0:01:17]} 45. f4 {[%clk 0:00:08]}  Bf6 {[%clk 0:01:17]} 46. Rf5 {[%clk 0:00:08]}  Ke7 {[%clk 0:01:16]} 47. Rxf6 {[%clk 0:00:08]}  Qc8 {[%clk 0:01:14]} 48. f5 {[%clk 0:00:08]}  Qg8 {[%clk 0:01:14]} 49. Re6+ {[%clk 0:00:09]}  Kd7 {[%clk 0:01:14]} 50. Ra6 {[%clk 0:00:08]}  Kc7 {[%clk 0:01:14]} 51. f6 {[%clk 0:00:08]}  Kb7 {[%clk 0:01:13]} 52. Bc4 {[%clk 0:00:08]}  Qg2 {[%clk 0:01:11]} 53. f7 {[%clk 0:00:08]}  Qg5 {[%clk 0:01:10]} 54. Rd6 {[%clk 0:00:06]}  Qe7 {[%clk 0:01:08]} 55. Rd7+ {[%clk 0:00:04]}  Qxd7 {[%clk 0:01:08]} 56. f8=Q {[%clk 0:00:05]}  Ka7 {[%clk 0:01:07]} 57. Qc5+ {[%clk 0:00:05]}  Kb8 {[%clk 0:01:07]} 58. Ba3 {[%clk 0:00:04]}  Ka8 {[%clk 0:01:04]} 59. Bd5+ {[%clk 0:00:03]}  Kb8 {[%clk 0:01:05]} 60. Qd6+ {[%clk 0:00:04]}  Ka7 {[%clk 0:01:04]} 61. Bc5# {[%clk 0:00:04]} 1-0


[Site "https://www.chess.com"]

[Event "Titled Tuesday Blitz February 14 Early 2023"]
[White "Dimitrov, Atanas"]
[Black "Petukhov, Dmitry"]
[WhiteFideId "2901315"]
[BlackFideId "4142748"]
[WhiteElo "2269"]
[BlackElo "2350"]
[Result "0-1"]
[Round "02"]
[TimeControl "180+2"]
[Date "2023.02.15"]
[WhiteClock "0:00:02"]
[BlackClock "0:00:40"]

1. Nf3 {[%clk 0:03:00]}  Nf6 {[%clk 0:03:00]} 2. c4 {[%clk 0:03:01]}  g6 {[%clk 0:03:00]} 3. g3 {[%clk 0:03:01]}  Bg7 {[%clk 0:02:59]} 4. Bg2 {[%clk 0:03:02]}  O-O {[%clk 0:03:00]} 5. O-O {[%clk 0:03:02]}  c6 {[%clk 0:03:01]} 6. Nc3 {[%clk 0:03:03]}  d5 {[%clk 0:03:01]} 7. cxd5 {[%clk 0:03:01]}  cxd5 {[%clk 0:03:02]} 8. d4 {[%clk 0:03:01]}  Ne4 {[%clk 0:03:02]} 9. Qb3 {[%clk 0:02:50]}  Nxc3 {[%clk 0:02:59]} 10. bxc3 {[%clk 0:02:48]}  Nc6 {[%clk 0:02:59]} 11. Ba3 {[%clk 0:02:48]}  Na5 {[%clk 0:02:53]} 12. Qb4 {[%clk 0:02:29]}  Nc4 {[%clk 0:02:51]} 13. Qxe7 {[%clk 0:02:17]}  Qxe7 {[%clk 0:02:52]} 14. Bxe7 {[%clk 0:02:18]}  Re8 {[%clk 0:02:52]} 15. Bg5 {[%clk 0:02:12]}  h6 {[%clk 0:02:47]} 16. Bf4 {[%clk 0:02:08]}  g5 {[%clk 0:02:46]} 17. Be5 {[%clk 0:02:04]}  f6 {[%clk 0:02:42]} 18. Ne1 {[%clk 0:01:34]}  fxe5 {[%clk 0:02:38]} 19. Bxd5+ {[%clk 0:01:35]}  Be6 {[%clk 0:02:38]} 20. Bxe6+ {[%clk 0:01:24]}  Rxe6 {[%clk 0:02:37]} 21. Nd3 {[%clk 0:01:04]}  exd4 {[%clk 0:02:33]} 22. cxd4 {[%clk 0:01:05]}  Rxe2 {[%clk 0:02:22]} 23. Rac1 {[%clk 0:01:04]}  b5 {[%clk 0:02:22]} 24. a4 {[%clk 0:01:03]}  a6 {[%clk 0:02:23]} 25. d5 {[%clk 0:01:00]}  Bd4 {[%clk 0:02:10]} 26. Rcd1 {[%clk 0:00:55]}  Rf8 {[%clk 0:02:09]} 27. axb5 {[%clk 0:00:52]}  axb5 {[%clk 0:02:08]} 28. h4 {[%clk 0:00:49]}  Nd2 {[%clk 0:02:09]} 29. hxg5 {[%clk 0:00:44]}  hxg5 {[%clk 0:02:03]} 30. Rfe1 {[%clk 0:00:41]}  Nf3+ {[%clk 0:02:02]} 31. Kf1 {[%clk 0:00:39]}  Rxe1+ {[%clk 0:01:59]} 32. Nxe1 {[%clk 0:00:36]}  Bb6 {[%clk 0:01:36]} 33. Nd3 {[%clk 0:00:29]}  Nd4 {[%clk 0:01:25]} 34. Ne5 {[%clk 0:00:24]}  Rd8 {[%clk 0:01:14]} 35. Rb1 {[%clk 0:00:13]}  Rxd5 {[%clk 0:01:12]} 36. Nd3 {[%clk 0:00:14]}  Kg7 {[%clk 0:01:10]} 37. Kg2 {[%clk 0:00:14]}  Kg6 {[%clk 0:01:04]} 38. f4 {[%clk 0:00:15]}  Nc6 {[%clk 0:00:59]} 39. Nf2 {[%clk 0:00:13]}  gxf4 {[%clk 0:00:58]} 40. gxf4 {[%clk 0:00:14]}  Kf5 {[%clk 0:00:59]} 41. Nh3 {[%clk 0:00:10]}  Kg4 {[%clk 0:00:58]} 42. Ng5 {[%clk 0:00:07]}  Rd2+ {[%clk 0:00:55]} 43. Kf1 {[%clk 0:00:06]}  Kxf4 {[%clk 0:00:53]} 44. Rxb5 {[%clk 0:00:05]}  Be3 {[%clk 0:00:40]} 45. Ne6+ {[%clk 0:00:06]}  Kf3 {[%clk 0:00:40]} 46. Rf5+ {[%clk 0:00:06]}  Ke4 {[%clk 0:00:41]} 47. Rb5 {[%clk 0:00:04]}  Ne5 {[%clk 0:00:40]} 48. Ke1 {[%clk 0:00:01]}  Nf3+ {[%clk 0:00:39]} 49. Kf1 {[%clk 0:00:02]}  Rf2# {[%clk 0:00:40]} 0-1


[Site "https://www.chess.com"]